bitfinex/quotes_BTCUSD_20250123
["timestamp","ask_amount","ask_price","bid_price","bid_amount"]
[1737622259643,0.60371333,102200.0,102190.0,0.2479988]
[1737622260266,0.60371333,102200.0,102190.0,0.35825086]
[1737622262251,0.75781742,102200.0,102190.0,0.35825086]
[1737622262473,0.73781742,102200.0,102190.0,0.35825086]
[1737622264363,0.58364843,102200.0,102190.0,0.0979988]
[1737622264808,0.68149543,102200.0,102190.0,0.0979988]
[1737622265016,0.70149543,102200.0,102190.0,0.0001428]
[1737622265222,0.70149543,102200.0,102190.0,0.0979988]
[1737622266140,0.60364843,102200.0,102190.0,0.0979988]
[1737622266732,0.70149543,102200.0,102190.0,0.0979988]
[1737622266914,0.60364843,102200.0,102190.0,0.0979988]
[1737622267126,0.51642182,102200.0,102190.0,0.0979988]
[1737622267332,0.61426882,102200.0,102190.0,0.0979988]
[1737622268360,0.50810182,102200.0,102190.0,0.0979988]
[1737622268561,0.49642182,102200.0,102190.0,0.20825086]
[1737622268794,0.49642182,102200.0,102190.0,0.0979988]
[1737622269592,0.59426882,102200.0,102190.0,0.0979988]
[1737622269794,0.7054313,102200.0,102190.0,0.0001428]
[1737622269998,0.7054313,102200.0,102190.0,0.0979988]
[1737622270171,0.7054313,102200.0,102190.0,0.0001428]
[1737622270379,0.84568336,102200.0,102190.0,0.0001428]
[1737622270987,0.7354313,102200.0,102190.0,0.0001428]
[1737622271213,0.66426882,102200.0,102190.0,0.0001428]
[1737622271378,0.66426882,102200.0,102190.0,0.0979988]
[1737622271580,0.66426882,102200.0,102190.0,0.0001428]
[1737622271995,0.66426882,102200.0,102190.0,0.0979988]
[1737622272210,0.54642182,102200.0,102190.0,0.0979988]
[1737622272420,0.59426882,102200.0,102190.0,0.0979988]
[1737622272840,0.60594882,102200.0,102190.0,0.0979988]
[1737622273279,0.50810182,102200.0,102190.0,0.0979988]
[1737622273916,0.60594882,102200.0,102190.0,0.0979988]
[1737622275018,0.60566882,102200.0,102190.0,0.0979988]
[1737622275855,0.50782182,102200.0,102190.0,0.0979988]
[1737622276456,0.55782182,102200.0,102190.0,0.0979988]
[1737622276875,0.55782182,102200.0,102190.0,0.10752418]
[1737622277407,0.77301611,102200.0,102190.0,0.0001428]
[1737622277606,0.3771,102190.0,102180.0,0.3091645]
[1737622277813,0.47444729,102190.0,102180.0,0.30921461]
[1737622278179,0.4772696,102190.0,102180.0,0.30921461]
[1737622278601,0.5751256,102190.0,102180.0,0.30921461]
[1737622279668,0.7272696,102190.0,102180.0,0.30921461]
[1737622282046,0.90050175,102190.0,102180.0,0.30921461]
[1737622282252,0.81440463,102190.0,102180.0,0.30921461]
[1737622282950,0.51440463,102190.0,102180.0,0.30921461]
[1737622283820,0.73730463,102190.0,102180.0,0.64566667]
[1737622284041,0.73963054,102190.0,102180.0,0.75591873]
[1737622284284,0.43963054,102190.0,102180.0,0.75591873]
[1737622284515,0.43963054,102190.0,102180.0,0.69306667]
[1737622285145,0.43963054,102190.0,102180.0,0.45921461]
[1737622285378,0.52173054,102190.0,102180.0,0.30921461]
[1737622285641,0.52173054,102190.0,102180.0,0.45921461]
[1737622285927,0.54106619,102190.0,102180.0,0.45921461]
[1737622287139,0.45393116,102190.0,102180.0,0.45921461]
[1737622290198,0.45393116,102190.0,102180.0,0.30921461]
[1737622290511,0.45393116,102190.0,102180.0,0.30935711]
[1737622293958,0.37183116,102190.0,102180.0,0.41960917]
[1737622294607,0.37183116,102190.0,102180.0,0.30935711]
[1737622294806,0.37183116,102190.0,102180.0,0.30904357]
[1737622296914,0.50133116,102190.0,102180.0,0.30904357]
[1737622297121,0.45273116,102190.0,102180.0,0.30904357]
[1737622302291,0.53986619,102190.0,102180.0,0.30904357]
[1737622303052,0.54016544,102190.0,102180.0,0.30904357]
[1737622309124,0.55204544,102190.0,102180.0,0.30904357]
[1737622309857,0.55204544,102190.0,102180.0,0.30857807]
[1737622315261,0.46491041,102190.0,102180.0,0.30857807]
[1737622320266,0.56276641,102190.0,102180.0,0.30857807]
[1737622320910,0.577366,102180.0,102170.0,0.0001425]
[1737622321116,0.91521741,102180.0,102170.0,0.00029336]
[1737622321328,0.178778,102170.0,102160.0,0.097885]
[1737622321535,0.17824729,102170.0,102160.0,0.097885]
[1737622321743,0.1832117,102170.0,102160.0,0.097885]
[1737622323035,0.1023117,102170.0,102160.0,0.097885]
[1737622323263,0.1023117,102170.0,102160.0,0.20813706]
[1737622323498,0.3523117,102170.0,102160.0,0.20813706]
[1737622324359,0.3523117,102170.0,102160.0,0.40483706]
[1737622326108,0.3523117,102170.0,102160.0,0.40497956]
[1737622326314,0.35261095,102170.0,102160.0,0.40497956]
[1737622327303,0.44000383,102170.0,102160.0,0.40497956]
[1737622329470,0.44000383,102170.0,102160.0,0.2947275]
[1737622334808,0.44000383,102170.0,102160.0,0.51077956]
[1737622334809,0.74000383,102170.0,102160.0,0.51077956]
[1737622335016,0.33769213,102170.0,102160.0,0.51077956]
[1737622335216,0.28393154,102170.0,102160.0,0.51077956]
[1737622335429,0.38127883,102170.0,102160.0,0.51077956]
[1737622337450,0.68127883,102170.0,102160.0,0.40497956]
[1737622337683,0.73513742,102170.0,102160.0,0.2480275]
[1737622337864,0.73513742,102170.0,102160.0,0.35827956]
[1737622338954,0.64774454,102170.0,102160.0,0.35827956]
[1737622341389,0.64774454,102170.0,102160.0,0.2480275]
[1737622341964,0.72574454,102170.0,102160.0,0.2480275]
[1737622342174,0.55091899,102170.0,102160.0,0.0980275]
[1737622342377,0.47434454,102170.0,102160.0,0.0980275]
[1737622346979,0.49427821,102170.0,102160.0,0.0980275]
[1737622348016,0.50563821,102170.0,102160.0,0.0980275]
[1737622349350,0.60351421,102170.0,102160.0,0.0980275]
[1737622349759,0.50563821,102170.0,102160.0,0.0980275]
[1737622355155,0.6029855,102170.0,102160.0,0.0980275]
[1737622355570,0.50563821,102170.0,102160.0,0.0980275]
[1737622355995,0.60351421,102170.0,102160.0,0.0980275]
[1737622356417,0.71376627,102170.0,102160.0,0.0980275]
[1737622356710,0.64215421,102170.0,102160.0,0.0001425]
[1737622356914,0.65351421,102170.0,102160.0,0.0980275]
[1737622357572,0.65351421,102170.0,102140.0,0.0001426]
[1737622357573,0.1325,102150.0,102140.0,0.0001426]
[1737622357776,0.300414,102130.0,102120.0,0.0002026]
[1737622358012,0.300414,102130.0,102100.0,0.0002696]
[1737622358013,0.180833,102110.0,102100.0,0.0002696]
[1737622358214,0.180833,102110.0,102090.0,0.0001426]
[1737622358215,0.397943,102100.0,102090.0,0.0001426]
[1737622358426,0.097952,102090.0,102080.0,0.10286103]
[1737622358629,0.097952,102090.0,102070.0,0.0001425]
[1737622358630,0.447962,102080.0,102070.0,0.0001425]
[1737622358835,0.57115543,102080.0,102070.0,0.0001425]
[1737622359041,0.09734729,102080.0,102070.0,0.08803475]
[1737622359269,0.19540716,102080.0,102070.0,0.08803475]
[1737622359442,0.34744516,102080.0,102070.0,0.08803475]
[1737622360199,0.46540716,102080.0,102070.0,0.08803475]
[1737622360403,0.56275445,102080.0,102070.0,0.08803475]
[1737622361899,0.61275445,102080.0,102070.0,0.08803475]
[1737622362123,0.72300651,102080.0,102070.0,0.08803475]
[1737622362328,1.04878646,102080.0,102070.0,0.07594699]
[1737622362572,0.250881,102060.0,102050.0,0.0001425]
[1737622362703,0.294005,102040.0,102020.0,0.098016]
[1737622362905,0.3,102020.0,102010.0,0.40431406]
[1737622363136,0.39734729,102020.0,102010.0,0.40431406]
[1737622363935,0.39734729,102020.0,102010.0,0.56380115]
[1737622364154,0.39734729,102020.0,102010.0,0.41380115]
[1737622364374,0.09734729,102020.0,102010.0,0.56380115]
[1737622364608,0.34734729,102020.0,102010.0,0.58680115]
[1737622365834,0.43375672,102020.0,102010.0,0.58680115]
[1737622366473,0.73375672,102020.0,102010.0,0.56380115]
[1737622366875,0.30608944,102020.0,102010.0,0.67000115]
[1737622368079,0.70343673,102020.0,102010.0,0.41380115]
[1737622368272,0.40343673,102020.0,102010.0,0.30354909]
[1737622368486,0.40343673,102020.0,102010.0,0.29421289]
[1737622368487,0.43375672,102020.0,102010.0,0.29421289]
[1737622368700,0.50653569,102020.0,102010.0,0.29421289]
[1737622369142,0.43375672,102020.0,102010.0,0.29421289]
[1737622369354,0.43375672,102020.0,102010.0,0.44421289]
[1737622369791,0.43375672,102020.0,102010.0,0.40446495]
[1737622370121,0.64734729,102020.0,102010.0,0.55446495]
[1737622370696,0.16712857,102020.0,102010.0,0.83761701]
[1737622370902,0.14312857,102020.0,102010.0,0.70736495]
[1737622372135,0.54047586,102020.0,102010.0,0.68436495]
[1737622372553,0.34734729,102020.0,102010.0,0.40446495]
[1737622372694,0.34734729,102020.0,102010.0,0.55446495]
[1737622372899,0.34734729,102020.0,102010.0,0.55460765]
[1737622373162,0.34764697,102020.0,102010.0,0.55460765]
[1737622374542,0.43370648,102020.0,102010.0,0.55460765]
[1737622375672,0.73370648,102020.0,102010.0,0.55460765]
[1737622376113,0.33635919,102020.0,102010.0,0.57760765]
[1737622376327,0.33635919,102020.0,102010.0,0.62430765]
[1737622376558,0.33635919,102020.0,102010.0,0.70750765]
[1737622376766,0.25794319,102020.0,102010.0,0.70750765]
[1737622377195,0.15952319,102020.0,102010.0,0.70750765]
[1737622378139,0.01465168,102020.0,102010.0,0.70750765]
[1737622378341,6.8e-07,102020.0,102010.0,0.83775971]
[1737622378511,0.23039668,102020.0,102010.0,0.83775971]
[1737622378728,0.23039668,102020.0,102010.0,0.88775971]
[1737622379154,0.13237668,102020.0,102010.0,0.985107]
[1737622379612,0.07550951,102040.0,102030.0,0.35121]
[1737622379846,0.3,102060.0,102050.0,0.097991]
[1737622380065,0.39734729,102060.0,102050.0,0.097991]
[1737622380280,0.39734729,102060.0,102050.0,0.46947487]
[1737622380481,0.39734729,102060.0,102050.0,0.46849512]
[1737622381067,0.39739727,102060.0,102050.0,0.49149512]
[1737622381278,9.8e-07,102060.0,102050.0,0.57469512]
[1737622381628,0.09734827,102060.0,102050.0,0.55169512]
[1737622381764,0.09734827,102060.0,102050.0,0.49703466]
[1737622383619,0.09734827,102060.0,102050.0,0.50649395]
[1737622385197,0.09764773,102060.0,102050.0,0.50649395]
[1737622385401,0.09764773,102060.0,102050.0,0.42329395]
[1737622386173,0.09764773,102060.0,102050.0,0.27329395]
[1737622387572,0.09764773,102060.0,102050.0,0.32329395]
[1737622387787,0.17834773,102060.0,102050.0,0.10745029]
[1737622388188,0.17834773,102060.0,102050.0,0.25745029]
[1737622388972,0.17834773,102060.0,102050.0,0.097991]
[1737622391515,0.19776941,102060.0,102050.0,0.097991]
[1737622393091,0.3,102050.0,102040.0,0.35366828]
[1737622393303,0.39734729,102050.0,102040.0,0.45166828]
[1737622395995,0.39734729,102050.0,102040.0,0.30166828]
[1737622396325,0.50752253,102050.0,102040.0,0.291975]
[1737622396506,0.44294729,102050.0,102040.0,0.291975]
[1737622400802,0.44294729,102050.0,102040.0,0.441975]
[1737622400979,0.39734729,102050.0,102040.0,0.441975]
[1737622402040,0.09734729,102050.0,102040.0,0.441975]
[1737622402294,0.09734729,102050.0,102040.0,0.60781866]
[1737622402911,0.48359087,102050.0,102040.0,0.60781866]
[1737622403110,0.48359087,102050.0,102040.0,0.69101866]
[1737622403727,0.48359087,102050.0,102040.0,0.63576507]
[1737622403928,0.18359087,102050.0,102040.0,0.63576507]
[1737622404140,0.48359087,102050.0,102040.0,0.63576507]
[1737622404549,0.01917864,102080.0,102070.0,0.20856107]
[1737622404770,0.09734729,102080.0,102070.0,0.20906442]
[1737622404930,0.09734729,102080.0,102070.0,0.29441135]
[1737622407345,0.3,102090.0,102080.0,0.247962]
[1737622407562,0.3,102090.0,102080.0,0.46914214]
[1737622407771,0.3,102090.0,102080.0,0.38155207]
[1737622407976,0.3,102090.0,102080.0,0.49214214]
[1737622408189,0.3,102090.0,102080.0,0.38155207]
[1737622409775,0.3,102090.0,102080.0,0.4367059]
[1737622411018,0.3,102090.0,102080.0,0.4347059]
[1737622411224,0.39734729,102090.0,102080.0,0.245962]
[1737622411642,0.39734729,102090.0,102080.0,0.4117059]
[1737622412885,0.09734729,102090.0,102080.0,0.245962]
[1737622413769,0.09734729,102090.0,102080.0,0.4117059]
[1737622414576,0.09734729,102090.0,102080.0,0.245962]
[1737622415382,0.09734729,102090.0,102080.0,0.4117059]
[1737622417177,0.39734729,102090.0,102080.0,0.4117059]
[1737622418571,0.3,102100.0,102090.0,0.443851]
[1737622418776,0.39734729,102100.0,102090.0,0.6095949]
[1737622418976,0.09734729,102100.0,102090.0,0.6095949]
[1737622419186,0.39734729,102100.0,102090.0,0.6095949]
[1737622420207,0.09734729,102100.0,102090.0,0.6095949]
[1737622420352,0.39734729,102100.0,102090.0,0.6095949]
[1737622422914,0.39734729,102100.0,102090.0,0.443851]
[1737622423136,0.09734729,102100.0,102090.0,0.443851]
[1737622424159,0.09734729,102100.0,102090.0,0.6095949]
[1737622424580,0.39734729,102100.0,102090.0,0.6095949]
[1737622425319,0.39734729,102100.0,102090.0,0.443851]
[1737622425519,0.39734729,102100.0,102090.0,0.45339137]
[1737622432504,0.47684729,102100.0,102090.0,0.45339137]
[1737622433116,0.47714675,102100.0,102090.0,0.45339137]
[1737622435110,0.47714675,102100.0,102090.0,0.443851]
[1737622440148,0.49643143,102100.0,102090.0,0.443851]
[1737622443301,0.49643143,102100.0,102080.0,0.2940106]
[1737622443302,0.34358143,102100.0,102080.0,0.2940106]
[1737622443522,0.09734729,102090.0,102080.0,0.4440106]
[1737622443734,0.09734729,102090.0,102080.0,0.2940106]
[1737622444206,0.09734729,102090.0,102080.0,0.4440106]
[1737622448092,0.09734729,102090.0,102080.0,0.55452062]
[1737622448314,0.39734729,102090.0,102080.0,0.55452062]
[1737622448490,0.09734729,102090.0,102080.0,0.63312062]
[1737622449151,0.39734729,102090.0,102080.0,0.63312062]
[1737622449334,0.3,102090.0,102080.0,0.81283064]
[1737622449548,0.3,102090.0,102080.0,0.61487364]
[1737622449741,0.06808069,102100.0,102090.0,0.349552]
[1737622449946,0.06808069,102100.0,102090.0,0.57057204]
[1737622450080,0.06808069,102100.0,102090.0,0.59057204]
[1737622450473,4.8e-07,102100.0,102090.0,0.68677204]
[1737622450606,4.8e-07,102100.0,102090.0,0.78411933]
[1737622452632,0.30029968,102130.0,102120.0,0.092924]
[1737622452830,0.39764697,102130.0,102120.0,0.35343402]
[1737622453237,0.39764697,102130.0,102120.0,0.46394404]
[1737622453441,0.30029968,102130.0,102120.0,0.46394404]
[1737622453849,0.30039828,102130.0,102120.0,0.46394404]
[1737622455127,0.30039828,102130.0,102120.0,0.56554404]
[1737622455661,0.30039828,102130.0,102120.0,0.58554404]
[1737622455868,0.30039828,102130.0,102120.0,0.63554404]
[1737622456622,0.00039828,102130.0,102120.0,0.63554404]
[1737622459239,0.00039828,102130.0,102120.0,0.64501023]
[1737622463509,0.00039828,102130.0,102120.0,0.62501023]
[1737622463715,0.00039828,102130.0,102120.0,0.57501023]
[1737622463938,0.39774557,102130.0,102120.0,0.21290021]
[1737622464365,0.09774557,102130.0,102120.0,0.21290021]
[1737622464775,0.09774557,102130.0,102120.0,0.36290021]
[1737622466561,0.18074557,102130.0,102120.0,0.10239019]
[1737622467166,0.18074557,102130.0,102120.0,0.25239019]
[1737622467626,0.18074557,102130.0,102120.0,0.25253269]
[1737622467843,0.27865957,102130.0,102120.0,0.0001425]
[1737622468055,0.32725957,102130.0,102120.0,0.0001425]
[1737622468679,0.32725957,102130.0,102120.0,0.0980665]
[1737622471406,0.3,102120.0,102110.0,0.35326163]
[1737622471600,0.39734729,102120.0,102110.0,0.45119463]
[1737622479237,0.39734729,102120.0,102110.0,0.56170465]
[1737622479522,0.09734729,102120.0,102110.0,0.56170465]
[1737622479765,0.09734729,102120.0,102110.0,0.64450465]
[1737622480727,0.09734729,102120.0,102110.0,0.64464715]
[1737622481739,0.30039828,102130.0,102110.0,0.54671415]
[1737622481981,0.39774557,102130.0,102120.0,0.20941313]
[1737622482387,0.30039828,102130.0,102120.0,0.51512315]
[1737622482614,0.30039828,102130.0,102120.0,0.51414404]
[1737622483179,0.00039828,102130.0,102120.0,0.53714404]
[1737622483380,0.00039828,102130.0,102120.0,0.63984404]
[1737622488547,0.00039828,102130.0,102120.0,0.46413402]
[1737622488731,0.00039828,102130.0,102120.0,0.38143402]
[1737622489196,0.39774557,102130.0,102120.0,0.35843402]
[1737622491264,0.30039828,102130.0,102120.0,0.35843402]
[1737622491846,0.39774557,102130.0,102120.0,0.097924]
[1737622492062,0.39774557,102130.0,102120.0,0.247924]
[1737622492447,0.39774557,102130.0,102120.0,0.35843402]
[1737622493621,0.39774557,102130.0,102120.0,0.247924]
[1737622500406,0.39774557,102130.0,102120.0,0.35843402]
[1737622500610,0.09774557,102130.0,102120.0,0.46894404]
[1737622500816,0.00039828,102130.0,102120.0,0.57404404]
[1737622501790,0.00039828,102130.0,102120.0,0.64204404]
[1737622501994,0.01820233,102140.0,102120.0,0.54412004]
[1737622502197,0.01820233,102140.0,102130.0,0.38240296]
[1737622502430,0.01820233,102140.0,102130.0,0.38142402]
[1737622502628,0.02548361,102140.0,102130.0,0.38142402]
[1737622503386,0.00728128,102140.0,102130.0,0.38142402]
[1737622504174,0.00728128,102140.0,102130.0,0.43142402]
[1737622504375,0.00728128,102140.0,102130.0,0.38142402]
[1737622504992,0.00728128,102140.0,102130.0,0.26051002]
[1737622505148,0.00728128,102140.0,102130.0,0.35842402]
[1737622506426,2.8e-07,102140.0,102130.0,0.71678133]
[1737622506631,0.08712162,102160.0,102150.0,0.328395]
[1737622506834,0.08712162,102160.0,102150.0,0.54941504]
[1737622507242,0.00029925,102170.0,102160.0,0.097885]
[1737622507243,0.08742087,102170.0,102160.0,0.097885]
[1737622507395,0.08742087,102170.0,102160.0,0.20839502]
[1737622507610,0.08742087,102170.0,102160.0,0.35839502]
[1737622508563,0.48476816,102170.0,102160.0,0.247885]
[1737622509139,0.48476816,102170.0,102160.0,0.35839502]
[1737622510664,0.48476816,102170.0,102160.0,0.247885]
[1737622512129,0.39764654,102170.0,102160.0,0.25765263]
[1737622520169,0.09764654,102170.0,102160.0,0.36816265]
[1737622520407,0.39764654,102170.0,102160.0,0.36816265]
[1737622521555,0.39764654,102170.0,102160.0,0.25765263]
[1737622521803,0.44684654,102170.0,102160.0,0.25765263]
[1737622525308,0.39764654,102170.0,102160.0,0.25765263]
[1737622525974,0.39764654,102170.0,102160.0,0.36816265]
[1737622526624,0.00029925,102170.0,102160.0,0.36816265]
[1737622526827,0.00029925,102170.0,102160.0,0.44416265]
[1737622527290,0.02942416,102170.0,102160.0,0.48716265]
[1737622527521,9.2e-07,102170.0,102160.0,0.48716265]
[1737622527758,0.01769001,102180.0,102170.0,0.290876]
[1737622527960,0.01769001,102180.0,102170.0,0.40138602]
[1737622529066,0.08742087,102190.0,102180.0,0.097866]
[1737622529287,0.08757176,102190.0,102180.0,0.20837602]
[1737622529858,0.08757176,102190.0,102180.0,0.097866]
[1737622530280,0.08757176,102190.0,102180.0,0.30437602]
[1737622530543,0.08757176,102190.0,102180.0,0.45437602]
[1737622531399,0.08757176,102190.0,102180.0,0.56488604]
[1737622531810,0.08757176,102190.0,102180.0,0.59259736]
[1737622532569,0.00045014,102190.0,102180.0,0.59259736]
[1737622533163,0.00045014,102190.0,102180.0,0.60232988]
[1737622534618,0.00045014,102190.0,102180.0,0.49181986]
[1737622534827,0.00045014,102190.0,102180.0,0.46410854]
[1737622542767,0.00045014,102190.0,102180.0,0.38810854]
[1737622542980,0.47819743,102190.0,102180.0,0.10759852]
[1737622543192,0.17819743,102190.0,102180.0,0.10759852]
[1737622544709,0.20819743,102190.0,102180.0,0.10759852]
[1737622546157,0.50819743,102190.0,102180.0,0.10759852]
[1737622547171,0.33045014,102190.0,102180.0,0.3690871]
[1737622547370,0.33045014,102190.0,102180.0,0.36810854]
[1737622549320,0.33045014,102190.0,102180.0,0.25759852]
[1737622550103,0.33045014,102190.0,102180.0,0.36810854]
[1737622552314,0.03045014,102190.0,102180.0,0.47861856]
[1737622552510,0.00045014,102190.0,102180.0,0.41110854]
[1737622555186,1.4e-07,102190.0,102180.0,0.41110854]
[1737622555416,1.4e-07,102190.0,102180.0,0.69896585]
[1737622556245,1.4e-07,102190.0,102180.0,0.72667717]
[1737622556786,1.4e-07,102190.0,102180.0,0.69896585]
[1737622557195,1.4e-07,102190.0,102180.0,0.58845583]
[1737622557335,1.4e-07,102190.0,102180.0,0.69896585]
[1737622557988,1.4e-07,102190.0,102180.0,0.36810854]
[1737622558200,1.4e-07,102190.0,102180.0,0.25759852]
[1737622559429,1.4e-07,102190.0,102180.0,0.36810854]
[1737622559624,1.4e-07,102190.0,102180.0,0.25759852]
[1737622559830,0.03000014,102190.0,102180.0,0.25759852]
[1737622561406,0.03029918,102190.0,102180.0,0.25759852]
[1737622561612,7e-08,102200.0,102190.0,0.043]
[1737622561781,0.00029946,102210.0,102200.0,0.247847]
[1737622562131,0.00029946,102210.0,102200.0,0.35835702]
[1737622563795,0.22784675,102210.0,102200.0,0.247847]
[1737622566242,0.22784675,102210.0,102200.0,0.25740893]
[1737622566468,0.52784675,102210.0,102200.0,0.25740893]
[1737622568987,0.52784675,102210.0,102200.0,0.247847]
[1737622571785,0.52784675,102210.0,102200.0,0.35835702]
[1737622571971,0.61496837,102210.0,102200.0,0.35835702]
[1737622573698,0.31496837,102210.0,102200.0,0.247847]
[1737622575652,0.3147091,102210.0,102200.0,0.247847]
[1737622577645,0.3147091,102210.0,102200.0,0.097847]
[1737622578023,0.4125461,102210.0,102200.0,0.097847]
[1737622578578,0.3147091,102210.0,102200.0,0.097847]
[1737622579195,0.3447091,102210.0,102200.0,0.097847]
[1737622579644,0.4425461,102210.0,102200.0,0.097847]
[1737622580016,0.3447091,102210.0,102200.0,0.097847]
[1737622580806,0.383,102200.0,102190.0,0.293545]
[1737622581007,0.52744729,102200.0,102190.0,0.293545]
[1737622584313,0.52744729,102200.0,102190.0,0.40405502]
[1737622585410,0.39734729,102200.0,102190.0,0.55405502]
[1737622585813,0.3,102200.0,102190.0,0.55405502]
[1737622586094,0.3,102200.0,102190.0,0.63359732]
[1737622586782,0.3,102200.0,102190.0,0.55419732]
[1737622587042,0.39734729,102200.0,102190.0,0.55419732]
[1737622587276,0.48034729,102200.0,102190.0,0.55419732]
[1737622589219,0.39734729,102200.0,102190.0,0.55419732]
[1737622591348,0.48493275,102200.0,102190.0,0.55419732]
[1737622599699,0.48493275,102200.0,102190.0,0.4436873]
[1737622600050,0.53333275,102200.0,102190.0,0.4436873]
[1737622602027,0.53333275,102200.0,102190.0,0.55419732]
[1737622604380,0.48493275,102200.0,102190.0,0.55419732]
[1737622605950,0.18493275,102200.0,102190.0,0.55419732]
[1737622608153,0.08758546,102200.0,102190.0,0.55419732]
[1737622608905,0.48493275,102200.0,102190.0,0.55419732]
[1737622612039,0.08758546,102200.0,102190.0,0.55419732]
[1737622625965,0.48493275,102200.0,102190.0,0.55419732]
[1737622627370,0.08758546,102200.0,102190.0,0.55419732]
[1737622627571,0.08758546,102200.0,102190.0,0.63609732]
[1737622627763,0.18493275,102200.0,102190.0,0.55419732]
[1737622628370,0.38758546,102200.0,102190.0,0.55419732]
[1737622637602,0.38758546,102200.0,102190.0,0.4436873]
[1737622640291,0.48493275,102200.0,102190.0,0.4436873]
[1737622640512,0.60963275,102200.0,102190.0,0.4436873]
[1737622640940,0.63333275,102200.0,102190.0,0.2936873]
[1737622641148,0.44995941,102200.0,102190.0,0.0001423]
[1737622641373,0.40747975,102200.0,102190.0,0.0979983]
[1737622641738,0.30963275,102200.0,102190.0,0.0979983]
[1737622642905,0.30963275,102200.0,102190.0,0.20850832]
[1737622643287,0.48493275,102200.0,102190.0,0.20850832]
[1737622643486,0.48493275,102200.0,102190.0,0.35850832]
[1737622643892,0.18493275,102200.0,102190.0,0.35850832]
[1737622644352,0.48493275,102200.0,102190.0,0.35850832]
[1737622644584,0.39734729,102200.0,102190.0,0.35850832]
[1737622644961,0.39734729,102200.0,102190.0,0.36824539]
[1737622645886,0.09734729,102200.0,102190.0,0.36824539]
[1737622646089,0.39734729,102200.0,102190.0,0.36824539]
[1737622647328,0.39734729,102200.0,102190.0,0.21824539]
[1737622650702,0.3,102200.0,102190.0,0.21824539]
[1737622651996,0.33,102200.0,102190.0,0.21824539]
[1737622656215,0.41771105,102200.0,102190.0,0.21824539]
[1737622658691,0.41771105,102200.0,102190.0,0.36824539]
[1737622661900,0.51505834,102200.0,102190.0,0.36824539]
[1737622662482,0.51505834,102200.0,102190.0,0.25773537]
[1737622663768,0.51505834,102200.0,102190.0,0.36824539]
[1737622665299,0.56495834,102200.0,102190.0,0.0979983]
[1737622665503,0.34435834,102200.0,102190.0,0.0979983]
[1737622671953,0.25664729,102200.0,102190.0,0.0979983]
[1737622675540,0.35449429,102200.0,102190.0,0.0979983]
[1737622675950,0.25664729,102200.0,102190.0,0.0979983]
[1737622676456,0.27601368,102200.0,102190.0,0.0979983]
[1737622682560,0.37386068,102200.0,102190.0,0.0979983]
[1737622682765,0.4843707,102200.0,102190.0,0.0979983]
[1737622683902,0.37386068,102200.0,102190.0,0.0979983]
[1737622684779,0.4843707,102200.0,102190.0,0.0979983]
[1737622685181,0.58171799,102200.0,102190.0,0.0979983]
[1737622687169,0.4843707,102200.0,102190.0,0.0979983]
[1737622687779,0.28669368,102200.0,102190.0,0.0979983]
[1737622701658,0.38454068,102200.0,102190.0,0.0979983]
[1737622702137,0.28669368,102200.0,102190.0,0.0979983]
[1737622704101,0.28685368,102200.0,102190.0,0.0979983]
[1737622704320,0.15755368,102200.0,102190.0,0.0979983]
[1737622707774,0.15755368,102200.0,102190.0,0.10759159]
[1737622716182,0.15755368,102200.0,102190.0,0.0979983]
[1737622722947,0.14671368,102200.0,102190.0,0.0979983]
[1737622724167,0.42734729,102200.0,102190.0,0.29470843]
[1737622724638,0.42734729,102200.0,102190.0,0.44470843]
[1737622725155,0.33,102200.0,102190.0,0.44470843]
[1737622725751,0.42734729,102200.0,102190.0,0.44470843]
[1737622728397,0.51494955,102200.0,102190.0,0.44470843]
[1737622730169,0.21494955,102200.0,102190.0,0.0979983]
[1737622733928,0.21494955,102200.0,102190.0,0.17040843]
[1737622734126,0.21494955,102200.0,102190.0,0.0979983]
[1737622734895,0.51494955,102200.0,102190.0,0.17040843]
[1737622735947,0.42734729,102200.0,102190.0,0.17040843]
[1737622743147,0.51489156,102200.0,102190.0,0.17040843]
[1737622744438,0.51489156,102200.0,102190.0,0.0979983]
[1737622744649,0.41450169,102200.0,102190.0,0.0979983]
[1737622744898,0.34209156,102200.0,102190.0,0.0979983]
[1737622745326,0.45993856,102200.0,102190.0,0.0979983]
[1737622745529,0.36209156,102200.0,102190.0,0.0979983]
[1737622745984,0.37277156,102200.0,102190.0,0.0979983]
[1737622746392,0.47061856,102200.0,102190.0,0.0979983]
[1737622746926,0.35277156,102200.0,102190.0,0.0979983]
[1737622747145,0.37277156,102200.0,102190.0,0.0979983]
[1737622748437,0.35277156,102200.0,102190.0,0.0979983]
[1737622749425,0.37277156,102200.0,102190.0,0.0979983]
[1737622749645,0.37278504,102200.0,102190.0,0.0979983]
[1737622750261,0.28524077,102200.0,102190.0,0.0979983]
[1737622751648,0.40308777,102200.0,102190.0,0.0979983]
[1737622752063,0.30524077,102200.0,102190.0,0.0979983]
[1737622752283,0.28524077,102200.0,102190.0,0.0979983]
[1737622760237,0.27456077,102200.0,102190.0,0.0979983]
[1737622765909,0.28524077,102200.0,102190.0,0.0979983]
[1737622767680,0.38308777,102200.0,102190.0,0.0979983]
[1737622768923,0.28524077,102200.0,102190.0,0.0979983]
[1737622774288,0.38308777,102200.0,102190.0,0.0979983]
[1737622774759,0.28524077,102200.0,102190.0,0.0979983]
[1737622775403,0.38308777,102200.0,102190.0,0.0979983]
[1737622776351,0.28524077,102200.0,102190.0,0.0979983]
[1737622777835,0.38308777,102200.0,102190.0,0.0979983]
[1737622778187,0.28524077,102200.0,102190.0,0.0979983]
[1737622778387,0.38308777,102200.0,102190.0,0.0979983]
[1737622778793,0.28524077,102200.0,102190.0,0.0979983]
[1737622779240,0.38308777,102200.0,102190.0,0.0979983]
[1737622779577,0.28524077,102200.0,102190.0,0.0979983]
[1737622780728,0.62284519,102200.0,102190.0,0.0001423]
[1737622780925,0.62284519,102200.0,102190.0,0.0979983]
[1737622781151,0.52499819,102200.0,102190.0,0.0979983]
[1737622781328,0.62284519,102200.0,102190.0,0.0979983]
[1737622781709,0.45258806,102200.0,102190.0,0.0979983]
[1737622782461,0.55043506,102200.0,102190.0,0.0979983]
[1737622782638,0.45258806,102200.0,102190.0,0.0979983]
[1737622784286,0.44190806,102200.0,102180.0,0.5873033]
[1737622784468,0.09734729,102190.0,102180.0,0.2937273]
[1737622788428,0.10802729,102190.0,102180.0,0.2937273]
[1737622791001,0.10802729,102190.0,102180.0,0.29354135]
[1737622792826,0.10802729,102190.0,102180.0,0.29368385]
[1737622795562,0.09734729,102190.0,102180.0,0.29368385]
[1737622796173,0.12540544,102190.0,102180.0,0.29368385]
[1737622796581,0.09734729,102190.0,102180.0,0.29368385]
[1737622803541,0.53130355,102190.0,102180.0,0.0001425]
[1737622803719,0.72430355,102190.0,102180.0,0.0001425]
[1737622803918,0.65430355,102190.0,102180.0,0.0001425]
[1737622804537,0.20301013,102170.0,102160.0,0.01980518]
[1737622804743,0.43277545,102170.0,102160.0,0.01995607]
[1737622804942,0.39823342,102170.0,102160.0,0.01995607]
[1737622805164,0.39823342,102170.0,102160.0,0.11784107]